[Event "Chinese Team-ch Men 2025"]
[Site "Zhang Jiakou Hebei"]
[Date "2025.04.26"]
[Round "2.18"]
[White "Zhao, Yuanhe"]
[Black "Chen, Yuan"]
[Result "1-0"]
[Annotator "ChessBase"]
[ECO "D32"]
[WhiteElo "2482"]
[BlackElo "2286"]
[PlyCount "95"]
[EventDate "2025.04.26"]
[EventType "team-tourn"]
[EventCountry "CHN"]
[SourceTitle "playchess.com"]
[Source "ChessBase"]
[SourceQuality "1"]
[TimeControl "5400+30"]

1. Nf3 {[%emt 0:00:02]} d5 {[%emt 0:00:09]} 2. e3 {[%emt 0:00:07]} c5 {[%emt 0:00:25]} 3. d4 {[%emt 0:01:34]} Nf6 {[%emt 0:03:42]} 4. c4 {[%emt 0:01:53]} e6 {[%emt 0:02:22]} 5. cxd5 {[%emt 0:00:06]} exd5 {[%emt 0:00:24]} 6. Nc3 {[%emt 0:00:07]} Nc6 {[%emt 0:02:01]} 7. Bb5 {[%emt 0:00:07]} cxd4 {[%emt 0:11:19]} 8. Nxd4 {[%emt 0:00:24]} Bd7 {[%emt 0:00:11]} 9. O-O {[%emt 0:00:50]} Be7 {[%emt 0:00:41]} 10. b3 {[%emt 0:04:09]} O-O {[%emt 0:02:56]} 11. Bb2 {[%emt 0:00:43]} Bd6 {[%emt 0:08:43]} 12. Nf3 {[%emt 0:03:08]} Bg4 {[%emt 0:04:19]} 13. Ne2 {[%emt 0:03:26]} a6 {[%emt 0:03:18]} 14. Bxc6 {[%emt 0:00:44]} bxc6 {[%emt 0:00:05]} 15. Rc1 {[%emt 0:00:16]} Rc8 {[%emt 0:03:45]} 16. h3 {[%emt 0:03:05]} Bh5 {[%emt 0:07:03]} 17. Nf4 {[%emt 0:00:13]} Bxf4 {[%emt 0:06:33]} 18. exf4 {[%emt 0:00:07]} Bxf3 {[%emt 0:02:37]} 19. Qxf3 {[%emt 0:00:12]} Ne4 {[%emt 0:00:22]} 20. Qg4 {[%emt 0:02:56]} g6 {[%emt 0:00:58]} 21. f5 {[%emt 0:03:39]} Qd6 {[%emt 0:17:07]} 22. Rfe1 {[%emt 0:11:49]} Rfe8 {[%emt 0:07:32]} 23. f3 {[%emt 0:01:38]} h5 {[%emt 0:08:05]} 24. Qh4 {[%emt 0:00:09]} Ng3 {[%emt 0:00:05]} 25. fxg6 {[%emt 0:12:01]} Qxg6 {[%emt 0:00:22]} 26. Kf2 {[%emt 0:03:43]} Nf5 {[%emt 0:02:03]} 27. Qf6 {[%emt 0:01:03]} Qxf6 {[%emt 0:01:06]} 28. Bxf6 {[%emt 0:01:28]} Rxe1 {[%emt 0:04:00]} 29. Rxe1 {[%emt 0:00:04]} Kh7 {[%emt 0:00:08]} 30. g4 {[%emt 0:00:19]} Kg6 {[%emt 0:00:24]} 31. Bb2 {[%emt 0:00:11]} hxg4 {[%emt 0:00:44]} 32. hxg4 {[%emt 0:00:05]} Nd6 {[%emt 0:00:07]} 33. Re7 {[%emt 0:00:27]} Nb5 {[%emt 0:01:04]} 34. Rd7 {[%emt 0:00:16]} d4 {[%emt 0:00:57]} 35. Bxd4 {[%emt 0:08:28]} c5 {[%emt 0:00:27]} 36. Ba1 {[%emt 0:00:32]} c4 {[%emt 0:00:39]} 37. a4 {[%emt 0:00:19]} cxb3 {[%emt 0:01:13]} 38. axb5 {[%emt 0:00:05]} Rc2+ {[%emt 0:00:15]} 39. Ke3 {[%emt 0:00:06]} axb5 {[%emt 0:01:11]} 40. Rd6+ {[%emt 0:00:04]} Kh7 {[%emt 0:00:04]} 41. Rd2 {[%emt 0:00:06]} Rc4 {[%emt 0:00:32]} 42. Bb2 {[%emt 0:00:11]} Kg6 {[%emt 0:00:54]} 43. Rd6+ {[%emt 0:00:04]} Kh7 {[%emt 0:00:08]} 44. Rd3 {[%emt 0:00:04]} Rb4 {[%emt 0:00:13]} 45. Rd4 {[%emt 0:00:53]} Ra4 {[%emt 0:00:23]} 46. Rxa4 {[%emt 0:00:11]} bxa4 {[%emt 0:00:03]} 47. f4 {[%emt 0:00:03]} f6 {[%emt 0:01:20]} 48. Kd3 {[%emt 0:00:03]} 1-0

[Event "Chinese Team-ch Men 2025"]
[Site "Zhang Jiakou Hebei"]
[Date "2025.04.26"]
[Round "2.19"]
[White "Chen, Zhi"]
[Black "Jiang, Qinyu"]
[Result "1-0"]
[Annotator "ChessBase"]
[ECO "B30"]
[WhiteElo "2094"]
[BlackElo "2280"]
[PlyCount "67"]
[EventDate "2025.04.26"]
[EventType "team-tourn"]
[EventCountry "CHN"]
[SourceTitle "playchess.com"]
[Source "ChessBase"]
[SourceQuality "1"]
[TimeControl "5400+30"]

1. e4 {[%emt 0:00:02]} c5 {[%emt 0:00:00]} 2. Nf3 {[%emt 0:00:10]} Nc6 {[%emt 0:00:01]} 3. Bb5 {[%emt 0:00:39]} e5 {[%emt 0:00:01]} 4. O-O {[%emt 0:01:21]} Bd6 {[%emt 0:00:01]} 5. c3 {[%emt 0:01:15]} a6 {[%emt 0:00:00]} 6. Bc4 {[%emt 0:03:23]} Nf6 {[%emt 0:00:02]} 7. d4 {[%emt 0:03:47]} cxd4 {[%emt 0:00:01]} 8. cxd4 {[%emt 0:00:08]} exd4 {[%emt 0:00:01]} 9. Re1 {[%emt 0:06:22]} O-O {[%emt 0:01:37]} 10. e5 {[%emt 0:05:43]} Bxe5 {[%emt 0:00:01]} 11. Nxe5 {[%emt 0:00:33]} Nxe5 {[%emt 0:00:01]} 12. Rxe5 {[%emt 0:00:16]} Qc7 {[%emt 0:00:01]} 13. Qxd4 {[%emt 0:02:29]} d5 {[%emt 0:00:01]} 14. Nc3 {[%emt 0:10:23]} Qxc4 {[%emt 0:00:26]} 15. Rxd5 {[%emt 0:04:11]} Qxd4 {[%emt 0:00:01]} 16. Rxd4 {[%emt 0:00:06]} h6 {[%emt 0:00:01]} 17. Bf4 {[%emt 0:03:00]} Be6 {[%emt 0:00:01]} 18. h3 {[%emt 0:04:25]} Rfd8 {[%emt 0:02:27]} 19. Rad1 {[%emt 0:00:39]} Rxd4 {[%emt 0:00:12]} 20. Rxd4 {[%emt 0:00:04]} Rc8 {[%emt 0:00:24]} 21. a4 {[%emt 0:06:11]} Rc4 {[%emt 0:04:58]} 22. Be5 {[%emt 0:02:54]} Rxd4 {[%emt 0:03:10]} 23. Bxd4 {[%emt 0:00:06]} Nd5 {[%emt 0:00:03]} 24. Nxd5 {[%emt 0:09:31]} Bxd5 {[%emt 0:02:26]} 25. b4 {[%emt 0:00:30]} h5 {[%emt 0:00:08]} 26. f4 {[%emt 0:00:19]} Kf8 {[%emt 0:00:09]} 27. Kf2 {[%emt 0:00:19]} g6 {[%emt 0:00:01]} 28. g4 {[%emt 0:00:28]} hxg4 {[%emt 0:00:02]} 29. hxg4 {[%emt 0:00:05]} Ke7 {[%emt 0:00:04]} 30. Ke3 {[%emt 0:00:20]} Ke6 {[%emt 0:00:01]} 31. b5 {[%emt 0:00:38]} axb5 {[%emt 0:00:36]} 32. axb5 {[%emt 0:00:04]} Bc4 {[%emt 0:00:10]} 33. b6 {[%emt 0:00:06]} Be2 {[%emt 0:00:04]} 34. Kxe2 {[%emt 0:00:44]} 1-0

[Event "Chinese Team-ch Men 2025"]
[Site "Zhang Jiakou Hebei"]
[Date "2025.04.26"]
[Round "2.20"]
[White "Gong, Bonuonuo"]
[Black "Gao, Kai"]
[Result "0-1"]
[Annotator "NA"]
[ECO "A35"]
[WhiteElo "1709"]
[BlackElo "1894"]
[PlyCount "126"]
[EventDate "2025.04.26"]
[EventType "team-tourn"]
[EventCountry "CHN"]
[SourceTitle "playchess.com"]
[Source "ChessBase"]
[SourceQuality "1"]
[TimeControl "5400+30"]

1. c4 {[%emt 0:00:02]} c6 {[%emt 0:00:57]} 2. e4 {[%emt 0:01:24]} d5 {[%emt 0:00:06]} 3. cxd5 {[%emt 0:00:07]} cxd5 {[%emt 0:00:08]} 4. exd5 {[%emt 0:00:05]} Nf6 {[%emt 0:00:12]} 5. Nc3 {[%emt 0:00:38]} Nxd5 {[%emt 0:02:35]} 6. d4 {[%emt 0:03:20]} g6 {[%emt 0:08:04]} 7. Nf3 {[%emt 0:05:59]} Bg7 {[%emt 0:02:33]} 8. Bb5+ {[%emt 0:06:14]} Nc6 {[%emt 0:02:37]} 9. Qb3 {[%emt 0:05:36]} Nxc3 {[%emt 0:11:23]} 10. bxc3 {[%emt 0:01:18]} O-O {[%emt 0:00:57]} 11. Bxc6 {[%emt 0:08:28]} bxc6 {[%emt 0:00:01]} 12. O-O {[%emt 0:00:38]} Be6 {[%emt 0:01:25]} 13. Qb7 {[%emt 0:08:06]} Bd5 {[%emt 0:08:41]} 14. Re1 {[%emt 0:09:17]} Re8 {[%emt 0:04:10]} 15. Ne5 {[%emt 0:08:21]} c5 {[%emt 0:03:02]} 16. Qb5 {[%emt 0:08:02]} cxd4 {[%emt 0:04:58]} 17. cxd4 {[%emt 0:00:10]} Rb8 {[%emt 0:03:54]} 18. Qc5 {[%emt 0:01:40]} a6 {[%emt 0:02:06]} 19. Be3 {[%emt 0:06:23]} Rb5 {[%emt 0:01:00]} 20. Qc3 {[%emt 0:03:31]} Qa8 {[%emt 0:00:39]} 21. f3 {[%emt 0:02:00]} Rc8 {[%emt 0:01:10]} 22. Qa3 {[%emt 0:00:55]} Qb7 {[%emt 0:06:16]} 23. Rac1 {[%emt 0:01:58]} Rxc1 {[%emt 0:09:49]} 24. Rxc1 {[%emt 0:00:11]} Rb1 {[%emt 0:00:26]} 25. Kf2 {[%emt 0:08:57]} Rb2+ {[%emt 0:10:32]} 26. Kg3 {[%emt 0:00:24]} Rxa2 {[%emt 0:01:32]} 27. Qc5 {[%emt 0:01:17]} h5 {[%emt 0:00:26]} 28. Qc8+ {[%emt 0:02:28]} Qxc8 {[%emt 0:00:58]} 29. Rxc8+ {[%emt 0:00:02]} Kh7 {[%emt 0:00:04]} 30. Rc5 {[%emt 0:01:15]} Bb3 {[%emt 0:02:17]} 31. h4 {[%emt 0:00:55]} a5 {[%emt 0:00:28]} 32. Nc6 {[%emt 0:00:58]} a4 {[%emt 0:00:38]} 33. Ra5 {[%emt 0:00:33]} Rc2 {[%emt 0:00:54]} 34. Nxe7 {[%emt 0:02:06]} Re2 {[%emt 0:00:08]} 35. Bg5 {[%emt 0:02:42]} f6 {[%emt 0:00:08]} 36. d5 {[%emt 0:01:11]} Rxe7 {[%emt 0:03:36]} 37. d6 {[%emt 0:00:11]} Rd7 {[%emt 0:00:05]} 38. Bf4 {[%emt 0:00:11]} Bf8 {[%emt 0:00:55]} 39. Ra6 {[%emt 0:00:31]} Kg7 {[%emt 0:00:22]} 40. Kf2 {[%emt 0:01:11]} Kf7 {[%emt 0:00:06]} 41. g4 {[%emt 0:00:20]} Ke6 {[%emt 0:00:13]} 42. gxh5 {[%emt 0:00:08]} gxh5 {[%emt 0:00:01]} 43. Ra5 {[%emt 0:00:21]} Bxd6 {[%emt 0:00:15]} 44. Bxd6 {[%emt 0:00:34]} Rxd6 {[%emt 0:00:44]} 45. Rxh5 {[%emt 0:00:06]} Ra6 {[%emt 0:00:03]} 46. Rb5 {[%emt 0:00:14]} a3 {[%emt 0:00:24]} 47. Rxb3 {[%emt 0:00:05]} a2 {[%emt 0:00:01]} 48. Re3+ {[%emt 0:00:06]} Kf5 {[%emt 0:00:05]} 49. Re1 {[%emt 0:00:04]} a1=Q {[%emt 0:00:05]} 50. Rxa1 {[%emt 0:00:05]} Rxa1 {[%emt 0:00:03]} 51. h5 {[%emt 0:00:06]} Rh1 {[%emt 0:00:05]} 52. h6 {[%emt 0:00:03]} Rxh6 {[%emt 0:00:05]} 53. Ke3 {[%emt 0:00:04]} Rh3 {[%emt 0:00:04]} 54. Ke2 {[%emt 0:00:05]} Kf4 {[%emt 0:00:03]} 55. Kf2 {[%emt 0:00:05]} Rh2+ {[%emt 0:00:10]} 56. Kg1 {[%emt 0:00:05]} Kg3 {[%emt 0:00:05]} 57. Kf1 {[%emt 0:00:06]} Kxf3 {[%emt 0:00:05]} 58. Ke1 {[%emt 0:00:08]} Ke3 {[%emt 0:00:05]} 59. Kd1 {[%emt 0:00:08]} f5 {[%emt 0:00:05]} 60. Kc1 {[%emt 0:00:05]} Kd3 {[%emt 0:00:04]} 61. Kb1 {[%emt 0:00:06]} Kc3 {[%emt 0:00:04]} 62. Ka1 {[%emt 0:00:05]} Kb3 {[%emt 0:00:02]} 63. Kb1 {[%emt 0:00:03]} Rh1# {[%emt 0:00:03]} 0-1

[Event "Chinese Team-ch Men 2025"]
[Site "Zhang Jiakou Hebei"]
[Date "2025.04.26"]
[Round "2.21"]
[White "Wan, Yunguo"]
[Black "Wang, Yiye"]
[Result "1/2-1/2"]
[Annotator "RC"]
[ECO "D75"]
[WhiteElo "2500"]
[BlackElo "2446"]
[PlyCount "60"]
[EventDate "2025.04.26"]
[EventType "team-tourn"]
[EventCountry "CHN"]
[SourceTitle "playchess.com"]
[Source "ChessBase"]
[SourceQuality "1"]
[TimeControl "5400+30"]

1. Nf3 {[%emt 0:00:05]} Nf6 {[%emt 0:00:10]} 2. g3 {[%emt 0:00:07]} g6 {[%emt 0:01:40]} 3. Bg2 {[%emt 0:00:15]} d5 {[%emt 0:02:14]} 4. c4 {[%emt 0:01:04]} Bg7 {[%emt 0:05:29]} 5. cxd5 {[%emt 0:01:28]} Nxd5 {[%emt 0:00:07]} 6. d4 {[%emt 0:00:08]} O-O {[%emt 0:30:40]} 7. O-O {[%emt 0:00:46]} c5 {[%emt 0:00:14]} 8. Nc3 {[%emt 0:09:44]} cxd4 {[%emt 0:00:24]} 9. Nxd4 {[%emt 0:00:15]} Nxc3 {[%emt 0:00:16]} 10. bxc3 {[%emt 0:00:10]} Nc6 {[%emt 0:02:00]} 11. Nxc6 {[%emt 0:23:02]} bxc6 {[%emt 0:00:08]} 12. Qa4 {[%emt 0:00:07]} Bxc3 {[%emt 0:24:18]} 13. Rb1 {[%emt 0:01:41]} Be6 {[%emt 0:18:36]} 14. Bxc6 {[%emt 0:10:19]} Rc8 {[%emt 0:01:50]} 15. Bh6 {[%emt 0:00:27]} Bg7 {[%emt 0:03:17]} 16. Bxg7 {[%emt 0:04:59]} Kxg7 {[%emt 0:00:05]} 17. Bb7 {[%emt 0:02:22]} Rc5 {[%emt 0:01:28]} 18. Qxa7 {[%emt 0:13:00]} Ra5 {[%emt 0:00:51]} 19. Qe3 {[%emt 0:00:33]} Rxa2 {[%emt 0:00:06]} 20. Qc3+ {[%emt 0:03:56]} Kg8 {[%emt 0:00:17]} 21. Rfd1 {[%emt 0:00:10]} Qa5 {[%emt 0:00:29]} 22. Qxa5 {[%emt 0:00:35]} Rxa5 {[%emt 0:00:05]} 23. f4 {[%emt 0:00:10]} Rb8 {[%emt 0:01:26]} 24. Bf3 {[%emt 0:00:51]} Rxb1 {[%emt 0:00:07]} 25. Rxb1 {[%emt 0:00:03]} Bd5 {[%emt 0:00:25]} 26. Kf2 {[%emt 0:00:21]} Bxf3 {[%emt 0:00:07]} 27. Kxf3 {[%emt 0:00:04]} Ra3+ {[%emt 0:00:05]} 28. e3 {[%emt 0:00:18]} f5 {[%emt 0:00:06]} 29. h4 {[%emt 0:00:17]} h5 {[%emt 0:00:10]} 30. Rb8+ {[%emt 0:00:06]} Kf7 {[%emt 0:00:51]} 1/2-1/2

[Event "Chinese Team-ch Men 2025"]
[Site "Zhang Jiakou Hebei"]
[Date "2025.04.26"]
[Round "2.22"]
[White "Hou, Yifan b"]
[Black "Zhang, Ziji"]
[Result "1/2-1/2"]
[Annotator "ChessBase"]
[ECO "E04"]
[WhiteElo "2313"]
[BlackElo "2371"]
[PlyCount "51"]
[EventDate "2025.04.26"]
[EventType "team-tourn"]
[EventCountry "CHN"]
[SourceTitle "playchess.com"]
[Source "ChessBase"]
[SourceQuality "1"]
[TimeControl "5400+30"]

1. d4 {[%emt 0:00:13]} d5 {[%emt 0:00:04]} 2. c4 {[%emt 0:00:25]} e6 {[%emt 0:00:14]} 3. Nf3 {[%emt 0:00:20]} Nf6 {[%emt 0:00:12]} 4. g3 {[%emt 0:01:08]} dxc4 {[%emt 0:00:43]} 5. Bg2 {[%emt 0:00:06]} Bb4+ {[%emt 0:01:14]} 6. Bd2 {[%emt 0:00:09]} a5 {[%emt 0:00:36]} 7. Qc2 {[%emt 0:00:14]} Bxd2+ {[%emt 0:00:53]} 8. Qxd2 {[%emt 0:00:42]} c6 {[%emt 0:01:01]} 9. a4 {[%emt 0:00:45]} b5 {[%emt 0:02:35]} 10. axb5 {[%emt 0:05:15]} cxb5 {[%emt 0:00:19]} 11. Qg5 {[%emt 0:00:08]} O-O {[%emt 0:01:10]} 12. Qxb5 {[%emt 0:00:14]} Ba6 {[%emt 0:00:23]} 13. Qxa5 {[%emt 0:09:17]} Bb7 {[%emt 0:00:52]} 14. Qxd8 {[%emt 0:00:09]} Rxa1 {[%emt 0:00:19]} 15. Qxf8+ {[%emt 0:00:35]} Kxf8 {[%emt 0:00:07]} 16. O-O {[%emt 0:00:15]} Ra2 {[%emt 0:02:48]} 17. Rc1 {[%emt 0:14:41]} Rxb2 {[%emt 0:04:24]} 18. Na3 {[%emt 0:10:08]} Nbd7 {[%emt 0:21:57]} 19. Bf1 {[%emt 0:03:11]} Bxf3 {[%emt 0:13:38]} 20. exf3 {[%emt 0:00:20]} Nb6 {[%emt 0:00:33]} 21. Nxc4 {[%emt 0:01:36]} Nxc4 {[%emt 0:00:06]} 22. Rxc4 {[%emt 0:01:40]} Rd2 {[%emt 0:00:07]} 23. Rc8+ {[%emt 0:00:14]} Ke7 {[%emt 0:00:05]} 24. Rc7+ {[%emt 0:00:05]} Kf8 {[%emt 0:00:05]} 25. Rc8+ {[%emt 0:00:05]} Ke7 {[%emt 0:00:04]} 26. Rc7+ {[%emt 0:00:07]} 1/2-1/2

[Event "Chinese Team-ch Men 2025"]
[Site "Zhang Jiakou Hebei"]
[Date "2025.04.26"]
[Round "2.23"]
[White "Zhang, Jingran"]
[Black "Fan, Huifeng"]
[Result "1/2-1/2"]
[Annotator "ChessBase"]
[ECO "A17"]
[WhiteElo "1787"]
[BlackElo "2178"]
[PlyCount "95"]
[EventDate "2025.04.26"]
[EventType "team-tourn"]
[EventCountry "CHN"]
[SourceTitle "playchess.com"]
[Source "ChessBase"]
[SourceQuality "1"]
[TimeControl "5400+30"]

1. Nf3 {[%emt 0:00:04]} Nf6 {[%emt 0:00:10]} 2. c4 {[%emt 0:00:14]} b6 {[%emt 0:00:34]} 3. g3 {[%emt 0:00:06]} Bb7 {[%emt 0:00:34]} 4. Bg2 {[%emt 0:00:06]} e6 {[%emt 0:00:10]} 5. O-O {[%emt 0:00:06]} Be7 {[%emt 0:00:03]} 6. Nc3 {[%emt 0:00:11]} O-O {[%emt 0:00:12]} 7. b3 {[%emt 0:00:06]} d5 {[%emt 0:05:09]} 8. e3 {[%emt 0:00:46]} c5 {[%emt 0:00:28]} 9. cxd5 {[%emt 0:01:29]} Nxd5 {[%emt 0:07:12]} 10. Nxd5 {[%emt 0:01:20]} Bxd5 {[%emt 0:01:13]} 11. Bb2 {[%emt 0:00:24]} Bf6 {[%emt 0:07:24]} 12. Bxf6 {[%emt 0:02:07]} Qxf6 {[%emt 0:00:07]} 13. Qe2 {[%emt 0:00:12]} e5 {[%emt 0:01:46]} 14. d3 {[%emt 0:02:39]} Nc6 {[%emt 0:01:09]} 15. Nd2 {[%emt 0:02:14]} Rad8 {[%emt 0:14:03]} 16. Rad1 {[%emt 0:02:21]} Bxg2 {[%emt 0:05:56]} 17. Kxg2 {[%emt 0:00:07]} Rd7 {[%emt 0:07:38]} 18. Ne4 {[%emt 0:03:53]} Qg6 {[%emt 0:00:57]} 19. f4 {[%emt 0:00:59]} exf4 {[%emt 0:08:39]} 20. Rxf4 {[%emt 0:00:11]} f5 {[%emt 0:02:20]} 21. Rdf1 {[%emt 0:01:29]} Nb4 {[%emt 0:05:06]} 22. g4 {[%emt 0:04:56]} Rdf7 {[%emt 0:00:20]} 23. Ng3 {[%emt 0:03:04]} fxg4 {[%emt 0:00:11]} 24. Rxf7 {[%emt 0:00:25]} Rxf7 {[%emt 0:00:08]} 25. Rxf7 {[%emt 0:00:31]} Kxf7 {[%emt 0:07:54]} 26. e4 {[%emt 0:01:28]} h5 {[%emt 0:00:35]} 27. a3 {[%emt 0:03:03]} Nc6 {[%emt 0:00:20]} 28. Qf2+ {[%emt 0:00:17]} Qf6 {[%emt 0:06:46]} 29. Nxh5 {[%emt 0:00:34]} Qxf2+ {[%emt 0:00:05]} 30. Kxf2 {[%emt 0:00:03]} Nd4 {[%emt 0:00:06]} 31. b4 {[%emt 0:00:51]} cxb4 {[%emt 0:00:13]} 32. axb4 {[%emt 0:00:23]} Nc2 {[%emt 0:00:13]} 33. b5 {[%emt 0:00:31]} Nd4 {[%emt 0:00:22]} 34. Ke3 {[%emt 0:01:42]} Nxb5 {[%emt 0:00:05]} 35. Nf4 {[%emt 0:00:27]} a5 {[%emt 0:05:16]} 36. Ne2 {[%emt 0:00:31]} a4 {[%emt 0:03:16]} 37. Nc1 {[%emt 0:00:21]} Kf6 {[%emt 0:01:37]} 38. d4 {[%emt 0:00:11]} Kg5 {[%emt 0:00:18]} 39. Na2 {[%emt 0:00:47]} Kh4 {[%emt 0:03:35]} 40. d5 {[%emt 0:01:33]} Kh3 {[%emt 0:06:18]} 41. Kf4 {[%emt 0:00:05]} a3 {[%emt 0:00:23]} 42. e5 {[%emt 0:00:41]} Nc7 {[%emt 0:00:08]} 43. d6 {[%emt 0:00:54]} Ne6+ {[%emt 0:00:10]} 44. Kf5 {[%emt 0:00:06]} Nd4+ {[%emt 0:00:29]} 45. Kg5 {[%emt 0:00:11]} Ne6+ {[%emt 0:02:15]} 46. Kf5 {[%emt 0:00:05]} Nd4+ {[%emt 0:00:37]} 47. Kg5 {[%emt 0:00:06]} Ne6+ {[%emt 0:00:47]} 48. Kf5 {[%emt 0:00:13]} 1/2-1/2

[Event "Chinese Team-ch Men 2025"]
[Site "Zhang Jiakou Hebei"]
[Date "2025.04.26"]
[Round "2.24"]
[White "Qu, Yanqiao"]
[Black "Zhang, Tiankun"]
[Result "1-0"]
[Annotator "NA"]
[ECO "D02"]
[WhiteElo "1969"]
[BlackElo "1581"]
[PlyCount "43"]
[EventDate "2025.04.26"]
[EventType "team-tourn"]
[EventCountry "CHN"]
[SourceTitle "playchess.com"]
[Source "ChessBase"]
[SourceQuality "1"]
[TimeControl "5400+30"]

1. Nf3 {[%emt 0:00:06]} d5 {[%emt 0:00:14]} 2. d4 {[%emt 0:00:10]} Nf6 {[%emt 0:00:36]} 3. Bf4 {[%emt 0:00:20]} e6 {[%emt 0:01:52]} 4. e3 {[%emt 0:00:20]} Be7 {[%emt 0:03:01]} 5. Nbd2 {[%emt 0:03:02]} O-O {[%emt 0:02:05]} 6. Bd3 {[%emt 0:00:14]} c5 {[%emt 0:02:06]} 7. c3 {[%emt 0:01:46]} Nc6 {[%emt 0:03:06]} 8. Ne5 {[%emt 0:07:07]} Nxe5 {[%emt 0:07:59]} 9. dxe5 {[%emt 0:04:06]} Nd7 {[%emt 0:01:49]} 10. Qc2 {[%emt 0:10:59]} h6 {[%emt 0:05:28]} 11. Qd1 {[%emt 0:09:06]} Bg5 {[%emt 0:09:51]} 12. Bg3 {[%emt 0:03:00]} Bh4 {[%emt 0:06:14]} 13. Qh5 {[%emt 0:05:28]} Bxg3 {[%emt 0:05:29]} 14. hxg3 {[%emt 0:00:01]} Qg5 {[%emt 0:05:44]} 15. Qxg5 {[%emt 0:01:57]} hxg5 {[%emt 0:00:21]} 16. Bh7+ {[%emt 0:05:53]} Kh8 {[%emt 0:02:20]} 17. f4 {[%emt 0:02:07]} gxf4 {[%emt 0:01:35]} 18. gxf4 {[%emt 0:00:09]} g5 {[%emt 0:01:37]} 19. Bd3+ {[%emt 0:01:32]} Kg8 {[%emt 0:01:43]} 20. Rh5 {[%emt 0:01:25]} gxf4 {[%emt 0:00:56]} 21. Rg5+ {[%emt 0:00:27]} Kh8 {[%emt 0:00:22]} 22. Ke2 {[%emt 0:00:20]} 1-0

[Event "Chinese Team-ch Men 2025"]
[Site "Zhang Jiakou Hebei"]
[Date "2025.04.26"]
[Round "2.25"]
[White "Cao, Qingfeng"]
[Black "Ma, Lin"]
[Result "1/2-1/2"]
[Annotator "ChessBase"]
[ECO "D22"]
[WhiteElo "2443"]
[BlackElo "2221"]
[PlyCount "64"]
[EventDate "2025.04.26"]
[EventType "team-tourn"]
[EventCountry "CHN"]
[SourceTitle "playchess.com"]
[Source "ChessBase"]
[SourceQuality "1"]
[TimeControl "5400+30"]

1. d4 {[%emt 0:00:04]} d5 {[%emt 0:00:26]} 2. c4 {[%emt 0:00:10]} dxc4 {[%emt 0:00:17]} 3. Nf3 {[%emt 0:00:12]} a6 {[%emt 0:00:09]} 4. e3 {[%emt 0:00:18]} b5 {[%emt 0:00:07]} 5. a4 {[%emt 0:00:14]} Bb7 {[%emt 0:00:07]} 6. b3 {[%emt 0:00:17]} e6 {[%emt 0:00:21]} 7. bxc4 {[%emt 0:00:17]} bxc4 {[%emt 0:00:04]} 8. Bxc4 {[%emt 0:00:08]} Nf6 {[%emt 0:00:04]} 9. O-O {[%emt 0:00:37]} Nbd7 {[%emt 0:00:33]} 10. Nbd2 {[%emt 0:02:41]} Be7 {[%emt 0:00:19]} 11. Qb3 {[%emt 0:02:43]} Ra7 {[%emt 0:02:08]} 12. Ba3 {[%emt 0:02:03]} c5 {[%emt 0:00:53]} 13. Rfc1 {[%emt 0:05:24]} O-O {[%emt 0:01:11]} 14. Bf1 {[%emt 0:12:37]} Bd5 {[%emt 0:00:07]} 15. Qc2 {[%emt 0:02:17]} Qa8 {[%emt 0:03:37]} 16. Ne1 {[%emt 0:12:45]} Rc7 {[%emt 0:08:35]} 17. Nd3 {[%emt 0:02:36]} Rfc8 {[%emt 0:01:25]} 18. dxc5 {[%emt 0:02:21]} Nxc5 {[%emt 0:37:17]} 19. Nxc5 {[%emt 0:01:05]} Bxc5 {[%emt 0:00:54]} 20. Bxc5 {[%emt 0:00:40]} Nd7 {[%emt 0:00:20]} 21. Nb3 {[%emt 0:07:04]} Bxb3 {[%emt 0:07:30]} 22. Qxb3 {[%emt 0:00:09]} Nxc5 {[%emt 0:00:47]} 23. Qa3 {[%emt 0:03:20]} a5 {[%emt 0:05:19]} 24. Rab1 {[%emt 0:00:51]} Ne4 {[%emt 0:03:07]} 25. Rxc7 {[%emt 0:04:58]} Rxc7 {[%emt 0:00:02]} 26. Rb5 {[%emt 0:13:56]} Nc3 {[%emt 0:11:04]} 27. Rb3 {[%emt 0:01:36]} Qc6 {[%emt 0:03:09]} 28. h3 {[%emt 0:01:53]} h6 {[%emt 0:02:07]} 29. Rb8+ {[%emt 0:08:43]} Rc8 {[%emt 0:04:08]} 30. Bb5 {[%emt 0:03:28]} Qc7 {[%emt 0:00:57]} 31. Rxc8+ {[%emt 0:00:05]} Qxc8 {[%emt 0:00:01]} 32. Qe7 {[%emt 0:00:19]} Nd5 {[%emt 0:03:31]} 1/2-1/2

[Event "Chinese Team-ch Men 2025"]
[Site "Zhang Jiakou Hebei"]
[Date "2025.04.26"]
[Round "2.26"]
[White "Sun, Chao"]
[Black "Dong, Hongfu"]
[Result "1/2-1/2"]
[Annotator "ChessBase"]
[ECO "B52"]
[WhiteElo "2211"]
[BlackElo "2238"]
[PlyCount "64"]
[EventDate "2025.04.26"]
[EventType "team-tourn"]
[EventCountry "CHN"]
[SourceTitle "playchess.com"]
[Source "ChessBase"]
[SourceQuality "1"]
[TimeControl "5400+30"]

1. e4 {[%emt 0:00:07]} c5 {[%emt 0:00:14]} 2. Nf3 {[%emt 0:00:14]} d6 {[%emt 0:02:35]} 3. Bb5+ {[%emt 0:00:21]} Bd7 {[%emt 0:01:29]} 4. Bxd7+ {[%emt 0:00:37]} Qxd7 {[%emt 0:00:14]} 5. c4 {[%emt 0:00:26]} Nf6 {[%emt 0:05:26]} 6. Nc3 {[%emt 0:00:46]} g6 {[%emt 0:00:37]} 7. O-O {[%emt 0:02:50]} Nc6 {[%emt 0:04:59]} 8. d4 {[%emt 0:11:49]} cxd4 {[%emt 0:01:33]} 9. Nxd4 {[%emt 0:00:04]} Bg7 {[%emt 0:00:29]} 10. Nxc6 {[%emt 0:04:18]} Qxc6 {[%emt 0:02:37]} 11. Bg5 {[%emt 0:10:46]} O-O {[%emt 0:16:17]} 12. Qe2 {[%emt 0:02:58]} Rac8 {[%emt 0:03:29]} 13. b3 {[%emt 0:04:44]} e6 {[%emt 0:04:03]} 14. Rac1 {[%emt 0:01:06]} a6 {[%emt 0:02:30]} 15. Rfd1 {[%emt 0:02:28]} h6 {[%emt 0:07:25]} 16. Be3 {[%emt 0:08:39]} Rfd8 {[%emt 0:04:09]} 17. f3 {[%emt 0:02:03]} Qe8 {[%emt 0:05:48]} 18. Bb6 {[%emt 0:10:18]} Rd7 {[%emt 0:00:06]} 19. Bd4 {[%emt 0:00:04]} Rc6 {[%emt 0:09:31]} 20. e5 {[%emt 0:16:46]} Nh5 {[%emt 0:10:09]} 21. exd6 {[%emt 0:01:02]} Nf4 {[%emt 0:01:57]} 22. Qe1 {[%emt 0:03:37]} e5 {[%emt 0:03:42]} 23. c5 {[%emt 0:00:19]} Ne6 {[%emt 0:01:19]} 24. Bxe5 {[%emt 0:01:10]} Nxc5 {[%emt 0:00:24]} 25. Nd5 {[%emt 0:03:17]} Nd3 {[%emt 0:02:11]} 26. Bxg7 {[%emt 0:00:39]} Qxe1+ {[%emt 0:01:18]} 27. Rxe1 {[%emt 0:00:07]} Kxg7 {[%emt 0:01:58]} 28. Rxc6 {[%emt 0:02:05]} bxc6 {[%emt 0:00:05]} 29. Nb6 {[%emt 0:07:00]} Rxd6 {[%emt 0:00:41]} 30. Rd1 {[%emt 0:00:02]} Kf6 {[%emt 0:00:21]} 31. Kf1 {[%emt 0:00:08]} Ke6 {[%emt 0:00:54]} 32. Na4 {[%emt 0:00:09]} Ke7 {[%emt 0:00:12]} 1/2-1/2